bitfinex/quotes_BTCUSD_20220212
["timestamp","ask_amount","ask_price","bid_price","bid_amount"]
[1644704340672,7.405e-05,42031.0,42030.0,0.37748305]
[1644704340924,7.405e-05,42031.0,42030.0,0.68463997]
[1644704342521,7.405e-05,42031.0,42030.0,0.37748305]
[1644704343122,7.405e-05,42031.0,42030.0,0.68490673]
[1644704343523,7.405e-05,42031.0,42030.0,0.37748305]
[1644704345574,0.00222803,42031.0,42030.0,0.3490723]
[1644704345773,0.00222803,42031.0,42030.0,0.04582205]
[1644704346473,0.00222803,42031.0,42030.0,0.75052569]
[1644704346474,0.00178789,42031.0,42030.0,0.75052569]
[1644704346874,0.06762168,42033.0,42031.0,1.594661]
[1644704347174,0.06762168,42033.0,42031.0,0.381661]
[1644704347175,0.00021923,42032.0,42031.0,0.381661]
[1644704347374,0.06762168,42033.0,42032.0,1.263]
[1644704347577,0.06762168,42033.0,42032.0,0.4647175]
[1644704347775,0.06762168,42033.0,42032.0,1.6147175]
[1644704348175,0.06762168,42033.0,42032.0,1.6647175]
[1644704348423,0.06762168,42033.0,42032.0,2.9777175]
[1644704348616,0.06762168,42033.0,42032.0,3.6455175]
[1644704349418,0.06762168,42033.0,42032.0,2.3325175]
[1644704349620,0.06262168,42033.0,42032.0,2.42547549]
[1644704349818,0.06262168,42033.0,42032.0,3.68847549]
[1644704350819,0.04474928,42033.0,42032.0,2.42547549]
[1644704351018,0.04474928,42033.0,42032.0,3.68847549]
[1644704351218,0.00021923,42036.0,42032.0,3.73847549]
[1644704351219,0.00043915,42035.0,42032.0,3.73847549]
[1644704351419,0.00043915,42035.0,42034.0,1.608916]
[1644704351619,0.00065838,42035.0,42034.0,3.0549725]
[1644704351818,0.00043915,42035.0,42034.0,3.2049725]
[1644704352274,0.00021923,42036.0,42035.0,1.298]
[1644704352475,0.00165838,42037.0,42036.0,0.41321356]
[1644704352675,0.00143915,42037.0,42036.0,2.11478994]
[1644704352877,0.00143915,42037.0,42036.0,2.21478994]
[1644704353475,0.001,42037.0,42036.0,2.71478994]
[1644704355176,0.00021923,42038.0,42036.0,2.71478994]
[1644704355375,0.00237038,42042.0,42039.0,1.263]
[1644704355577,0.00237038,42042.0,42041.0,0.04582205]
[1644704355775,0.00237038,42042.0,42041.0,1.80527249]
[1644704356028,0.00237038,42042.0,42041.0,1.36222205]
[1644704356228,0.00237038,42042.0,42041.0,1.46222205]
[1644704356629,0.00237038,42042.0,42041.0,1.47173805]
[1644704356827,0.00237038,42042.0,42041.0,1.79388305]
[1644704357028,0.00104154,42044.0,42041.0,2.05629875]
[1644704357227,0.00074232,42043.0,42042.0,1.89784235]
[1644704357427,0.00074232,42043.0,42042.0,2.05124235]
[1644704358028,0.00104154,42044.0,42042.0,2.11068935]
[1644704358229,0.00104154,42044.0,42043.0,1.89782742]
[1644704358427,0.00104154,42044.0,42043.0,1.95122742]
[1644704358627,0.00104154,42044.0,42043.0,1.648061]
[1644704360472,0.00104154,42044.0,42043.0,1.657576]
[1644704361073,0.00104154,42044.0,42043.0,1.648061]
[1644704361872,0.0121,42049.0,42043.0,1.648061]
[1644704361873,0.91595128,42050.0,42044.0,0.331661]
[1644704362074,0.91595128,42050.0,42049.0,0.43691805]
[1644704362274,0.5251386,42050.0,42049.0,2.60419473]
[1644704362475,0.0021,42067.0,42049.0,3.23273569]
[1644704362673,0.0021,42067.0,42058.0,1.04528305]
[1644704362874,0.0021,42067.0,42058.0,1.28768461]
[1644704362875,0.00021992,42064.0,42058.0,1.28768461]
[1644704363075,0.00021992,42064.0,42058.0,1.24868305]
[1644704363436,0.00021992,42066.0,42061.0,0.331661]
[1644704363626,0.00021992,42064.0,42063.0,0.331661]
[1644704363827,0.00111562,42065.0,42063.0,0.39195845]
[1644704364027,0.0008957,42065.0,42063.0,0.39195845]
[1644704364230,0.0008957,42065.0,42063.0,0.06029745]
[1644704364428,0.0008957,42065.0,42063.0,0.0534]
[1644704364631,0.00111562,42065.0,42063.0,0.0534]
[1644704365232,0.00443723,42069.0,42064.0,0.331661]
[1644704365431,0.3032,42074.0,42065.0,0.0534]
[1644704365632,0.00111664,42073.0,42066.0,0.331661]
[1644704365830,0.49846051,42077.0,42067.0,0.0534]
[1644704366034,0.29775007,42077.0,42068.0,0.331661]
[1644704366232,0.29775007,42077.0,42066.0,0.07455053]
[1644704366431,0.08238804,42076.0,42069.0,0.0534]
[1644704369187,0.08238804,42076.0,42070.0,0.331661]
[1644704369388,0.00044158,42075.0,42069.0,0.0534]
[1644704369588,0.00044158,42075.0,42071.0,0.331661]
[1644704369789,0.08960937,42075.0,42072.0,0.331661]
[1644704369991,0.08960937,42075.0,42070.0,0.331661]
[1644704370488,0.08460937,42075.0,42072.0,0.331661]
[1644704371126,0.08460937,42075.0,42072.0,0.450487]
[1644704371325,0.08460937,42075.0,42073.0,0.331661]
[1644704372423,0.08460937,42075.0,42073.0,0.346661]
[1644704372624,0.07960937,42075.0,42073.0,0.346661]
[1644704373025,0.07960937,42075.0,42074.0,0.0534]
[1644704373224,0.07960937,42075.0,42074.0,0.385061]
[1644704375280,0.07960937,42075.0,42074.0,0.37910891]
[1644704377079,0.00022037,42076.0,42074.0,0.37910891]
[1644704377281,0.00044322,42077.0,42074.0,0.04744791]
[1644704377480,0.00022037,42076.0,42075.0,0.331661]
[1644704377781,0.00044322,42077.0,42074.0,0.04744791]
[1644704378430,0.00044322,42077.0,42075.0,0.331661]
[1644704378624,0.00022037,42080.0,42075.0,0.331661]
[1644704378826,0.00022037,42080.0,42076.0,0.331661]
[1644704379024,0.00044322,42078.0,42074.0,0.331661]
[1644704379523,0.07465745,42076.0,42074.0,0.331661]
[1644704379723,0.07465745,42076.0,42075.0,0.331661]
[1644704379922,0.00012962,42081.0,42075.0,0.331661]
[1644704379923,0.00022037,42077.0,42075.0,0.331661]
[1644704380125,0.00040468,42077.0,42076.0,0.331661]
[1644704380323,0.00040468,42077.0,42074.0,0.00213109]
[1644704380724,0.00040468,42077.0,42075.0,0.331661]
[1644704380926,0.00062505,42077.0,42074.0,0.00213109]
[1644704381125,0.00022037,42077.0,42076.0,0.331661]
[1644704381327,0.22124784,42078.0,42075.0,0.331661]
[1644704381527,0.00022037,42077.0,42075.0,0.331661]
[1644704381725,0.00040468,42078.0,42076.0,0.331661]
[1644704381926,0.06810721,42076.0,42074.0,0.00213109]
[1644704382371,0.05332758,42076.0,42075.0,0.331661]
[1644704382571,0.00040468,42077.0,42074.0,0.00213109]
[1644704382771,0.00040468,42077.0,42075.0,0.331661]
[1644704382971,0.00062505,42077.0,42075.0,0.331661]
[1644704383172,0.18577358,42083.0,42074.0,0.00213109]
[1644704383472,0.00022053,42080.0,42074.0,0.00213109]
[1644704383672,0.18577358,42083.0,42074.0,0.00213109]
[1644704383673,0.08542807,42077.0,42074.0,0.00213109]
[1644704383874,0.00022053,42082.0,42074.0,0.00213109]
[1644704384072,0.18599411,42083.0,42074.0,0.00213109]
[1644704384272,0.00022053,42082.0,42074.0,0.00213109]
[1644704384471,0.18577358,42083.0,42074.0,0.00213109]
[1644704384672,0.00022053,42082.0,42074.0,0.00213109]
[1644704384971,0.18577358,42083.0,42074.0,0.00213109]
[1644704384972,0.07790547,42079.0,42074.0,0.00213109]
[1644704385173,0.07790547,42079.0,42075.0,0.331661]
[1644704385374,0.07790547,42079.0,42074.0,0.00213109]
[1644704385674,0.07790547,42079.0,42073.0,0.059413]
[1644704386126,0.07812316,42079.0,42075.0,0.331661]
[1644704386327,0.07812316,42079.0,42073.0,0.118824]
[1644704386529,0.07812316,42079.0,42073.0,0.059413]
[1644704386928,0.07812316,42079.0,42074.0,0.331661]
[1644704387129,0.07790547,42079.0,42073.0,0.059413]
[1644704387329,0.07790547,42079.0,42073.0,0.05985641]
[1644704387528,0.07834882,42079.0,42073.0,0.00044341]
[1644704387729,0.07834882,42079.0,42074.0,0.331661]
[1644704387730,0.00044335,42079.0,42074.0,0.331661]
[1644704387930,0.00044335,42079.0,42073.0,0.00044341]
[1644704388129,0.00044335,42079.0,42075.0,0.04582205]
[1644704388329,0.00022053,42082.0,42072.0,0.00216122]
[1644704388529,0.00044335,42079.0,42073.0,0.05985641]
[1644704388730,0.00044335,42079.0,42076.0,0.331661]
[1644704389131,0.00044335,42079.0,42073.0,0.05985641]
[1644704389329,0.00044335,42079.0,42073.0,0.00044341]
[1644704389529,0.00022053,42080.0,42072.0,0.00216122]
[1644704389780,0.0002195,42079.0,42072.0,0.50216122]
[1644704389980,0.07354655,42081.0,42072.0,0.50216122]
[1644704390283,0.2529796,42077.0,42072.0,0.50216122]
[1644704390482,0.2529796,42077.0,42072.0,0.5]
[1644704390881,0.2529796,42077.0,42071.0,0.5]
[1644704391481,0.07906044,42073.0,42071.0,0.5]
[1644704392379,0.2529796,42077.0,42071.0,0.5]
[1644704393441,0.2529796,42077.0,42072.0,0.0002288]
[1644704394243,0.2529796,42077.0,42071.0,0.5]
[1644704394441,0.2529796,42077.0,42072.0,0.00044605]
[1644704394841,0.07618278,42074.0,42073.0,0.331661]
[1644704395042,0.07618278,42074.0,42072.0,0.00044605]
[1644704395442,0.07618278,42074.0,42071.0,0.5]
[1644704395642,0.07618278,42074.0,42071.0,0.50044606]
[1644704396342,0.07618278,42074.0,42072.0,0.331661]
[1644704396745,0.00044595,42081.0,42071.0,0.50044606]
[1644704396746,0.001,42085.0,42071.0,0.5]
[1644704396944,0.00043276,42081.0,42071.0,0.50043286]
[1644704397584,0.25026708,42078.0,42071.0,0.50043286]
[1644704397780,0.0894558,42073.0,42072.0,0.331661]
[1644704398183,0.0794558,42073.0,42072.0,0.331661]
[1644704398381,0.00021773,42081.0,42072.0,0.331661]
[1644704398583,0.00021773,42081.0,42071.0,0.5]
[1644704398784,0.00021773,42081.0,42071.0,0.6]
[1644704399082,0.00022183,42084.0,42072.0,0.5]
[1644704399285,0.00020314,42081.0,42072.0,0.5]
[1644704399483,0.06387402,42077.0,42072.0,0.5]
[1644704399684,0.00022183,42080.0,42073.0,0.331661]
[1644704399882,0.00022183,42080.0,42075.0,0.04582205]
[1644704400082,0.00020314,42081.0,42076.0,0.331661]
[1644704400282,0.00020314,42081.0,42073.0,0.60523505]
[1644704400283,0.00022183,42080.0,42073.0,0.60523505]
[1644704400485,0.00205279,42081.0,42076.0,0.331661]
[1644704400684,0.00022183,42080.0,42075.0,0.00043196]
[1644704400935,0.00248469,42081.0,42075.0,0.00043196]
[1644704401130,0.00022183,42080.0,42075.0,0.00043196]
[1644704401330,0.00270652,42081.0,42075.0,0.00043196]
[1644704401533,0.00022183,42080.0,42075.0,0.5]
[1644704401733,0.00248469,42081.0,42075.0,0.50043196]
[1644704402432,0.08043433,42076.0,42075.0,0.50043196]
[1644704402833,0.08043433,42076.0,42075.0,0.5]
[1644704403032,0.00022183,42080.0,42075.0,0.5]
[1644704403332,0.00248468,42081.0,42075.0,0.5]
[1644704403532,0.22332825,42076.0,42075.0,0.5]
[1644704403734,0.21832825,42076.0,42075.0,0.5]
[1644704404132,0.28188382,42076.0,42075.0,0.5]
[1644704404790,0.28188382,42076.0,42075.0,0.831661]
[1644704404990,0.28188382,42076.0,42075.0,0.5]
[1644704405490,0.06355557,42076.0,42075.0,0.5]
[1644704405790,0.06355557,42076.0,42073.0,0.00040935]
[1644704405989,0.06355557,42076.0,42073.0,0.50040935]
[1644704406391,0.51327221,42075.0,42074.0,0.331661]
[1644704406592,0.51327221,42075.0,42073.0,0.5]
[1644704406593,0.52013029,42075.0,42073.0,0.5]
[1644704406792,0.3,42074.0,42072.0,0.00040936]
[1644704406991,0.00022183,42074.0,42072.0,0.00040936]
[1644704407195,0.31540991,42075.0,42072.0,0.00040936]
[1644704407392,0.00022183,42074.0,42072.0,0.00040936]
[1644704407594,0.00122807,42071.0,42063.0,0.35266346]
[1644704408734,0.24276254,42065.0,42063.0,0.35266346]
[1644704408937,0.08124799,42064.0,42063.0,0.35266346]
[1644704409134,0.08124799,42064.0,42063.0,0.68432446]
[1644704409336,0.08124799,42064.0,42063.0,0.37786869]
[1644704409535,0.08124799,42064.0,42063.0,0.68432446]
[1644704409739,0.08124799,42064.0,42063.0,0.37786869]
[1644704409938,0.24276254,42065.0,42063.0,0.40269869]
[1644704410138,0.24276254,42065.0,42064.0,0.7095401]
[1644704410337,0.24276254,42065.0,42061.0,0.00041324]
[1644704410338,0.24276254,42065.0,42062.0,0.35266346]
[1644704410538,0.24276254,42065.0,42061.0,0.3530767]
[1644704410736,0.24276254,42065.0,42061.0,0.37830047]
[1644704410938,0.08614554,42064.0,42061.0,0.37830047]
[1644704411137,0.08614554,42064.0,42061.0,0.35266346]
[1644704411341,0.08614554,42064.0,42061.0,0.00042719]
[1644704411939,0.30417795,42063.0,42061.0,0.00042719]
[1644704412482,0.21302828,42061.0,42060.0,0.00042719]
[1644704412679,0.30417795,42063.0,42060.0,0.00042719]
[1644704413381,0.35417795,42063.0,42060.0,0.00042719]
[1644704413579,0.35417795,42063.0,42046.0,0.46378467]
[1644704413779,0.00417795,42060.0,42059.0,0.00042719]
[1644704414181,0.05757795,42060.0,42059.0,0.00042719]
[1644704414383,0.34788895,42060.0,42059.0,0.00042719]
[1644704414782,0.07075979,42050.0,42046.0,0.08823583]
[1644704414986,0.44788895,42060.0,42057.0,0.00041074]
[1644704414987,0.443711,42060.0,42057.0,0.00041074]
[1644704415380,0.343711,42060.0,42057.0,0.00041074]
[1644704416029,0.343711,42060.0,42046.0,0.059451]
[1644704416030,0.0843676,42059.0,42046.0,0.059451]
[1644704416230,0.0534,42058.0,42046.0,0.05486174]
[1644704416531,0.30053027,42057.0,42046.0,0.05486174]
[1644704416729,0.23521041,42051.0,42045.0,0.02142]
[1644704416930,0.08783689,42050.0,42045.0,0.02142]
[1644704420479,0.34386307,42050.0,42047.0,0.00198112]
[1644704421779,0.08783689,42050.0,42047.0,0.00198112]
[1644704422879,0.08683689,42050.0,42047.0,0.00198112]
[1644704423526,0.33961016,42050.0,42047.0,0.00198112]
[1644704423725,0.1977092,42048.0,42042.0,0.0838216]
[1644704424028,0.1977092,42048.0,42041.0,0.1189]
[1644704424225,0.07208787,42043.0,42042.0,0.331661]
[1644704424426,0.07208787,42043.0,42041.0,0.1189]
[1644704424625,0.07208787,42043.0,42039.0,0.19861176]
[1644704424826,0.07208787,42043.0,42039.0,0.118909]
[1644704425026,0.07208787,42043.0,42039.0,0.331661]
[1644704425629,0.07208787,42043.0,42038.0,0.5062]
[1644704425826,0.07208787,42043.0,42039.0,0.00041126]
[1644704426835,0.3,42042.0,42037.0,0.01241826]
[1644704427032,0.12548787,42043.0,42039.0,0.00041126]
[1644704427033,0.23878787,42043.0,42039.0,0.00041126]
[1644704427291,0.3,42042.0,42039.0,0.00041126]
[1644704427492,0.0534,42041.0,42039.0,0.00041126]
[1644704427694,0.22113549,42040.0,42039.0,0.00041126]
[1644704427893,0.0534,42040.0,42034.0,0.08471248]
[1644704428096,0.0534,42040.0,42037.0,0.00041127]
[1644704429094,0.08080531,42038.0,42035.0,0.331661]
[1644704429391,0.08080531,42038.0,42036.0,0.00022939]
[1644704430494,0.08080531,42038.0,42035.0,0.3318904]
[1644704431632,0.08080531,42038.0,42035.0,0.331661]
[1644704432534,0.08080531,42038.0,42034.0,0.0002294]
[1644704432734,0.08080531,42038.0,42035.0,0.331661]
[1644704432933,0.08080531,42038.0,42036.0,0.331661]
[1644704433134,0.07580531,42038.0,42037.0,0.331661]
[1644704433339,0.07580531,42038.0,42036.0,0.059475]
[1644704434340,0.3,42037.0,42035.0,0.00022943]
[1644704434538,0.07580531,42038.0,42035.0,0.00022943]
[1644704435085,0.07580531,42038.0,42031.0,0.05582205]
[1644704435386,0.54330449,42037.0,42031.0,0.05582205]
[1644704435587,0.54496354,42037.0,42034.0,0.00022943]
[1644704435784,0.24496354,42037.0,42034.0,0.00022943]
[1644704436487,0.24496354,42037.0,42031.0,0.05582205]
[1644704436684,0.28260355,42036.0,42033.0,0.00022943]
[1644704437585,0.28260355,42036.0,42031.0,0.05582205]
[1644704437784,0.28260355,42036.0,42032.0,0.00044781]
[1644704438185,0.24496354,42037.0,42032.0,0.00044781]
[1644704438433,0.50050342,42037.0,42032.0,0.00044781]
[1644704438629,0.24496354,42037.0,42032.0,0.059483]
[1644704438828,0.49758989,42037.0,42032.0,0.059483]
[1644704439027,0.24496354,42037.0,42032.0,0.059483]
[1644704439427,0.49940392,42037.0,42032.0,0.059483]
[1644704439827,0.24496354,42037.0,42032.0,0.059483]
[1644704440027,0.26267595,42036.0,42032.0,0.059483]
[1644704440827,0.24496354,42037.0,42032.0,0.059483]
[1644704441027,0.00165529,42035.0,42034.0,0.00149513]
[1644704446028,0.50170756,42037.0,42034.0,0.00149513]
[1644704446228,0.50170756,42037.0,42032.0,0.059483]
[1644704446431,0.25391083,42036.0,42031.0,0.05310026]
[1644704447427,0.26696961,42037.0,42031.0,0.05310026]
[1644704447628,0.26696961,42037.0,42031.0,0.00727821]
[1644704448029,0.00118235,42037.0,42031.0,0.05310026]
[1644704448229,0.00118235,42037.0,42033.0,0.059477]
[1644704450176,0.07580531,42038.0,42033.0,0.059477]
[1644704450177,0.00118235,42035.0,42033.0,0.059477]
[1644704450577,0.00118235,42035.0,42032.0,0.00185237]
[1644704455728,0.26459899,42037.0,42032.0,0.00185237]
[1644704455927,0.26459899,42037.0,42032.0,0.04767442]
[1644704457176,0.26436348,42037.0,42032.0,0.04767442]
[1644704457378,0.25296678,42037.0,42032.0,0.04767442]
[1644704457579,0.07698632,42038.0,42032.0,0.04767442]
[1644704457779,0.26800283,42037.0,42032.0,0.04767442]
[1644704457980,0.26278274,42037.0,42032.0,0.04767442]
[1644704458180,0.07698632,42038.0,42032.0,0.04767442]
[1644704458781,0.26815284,42037.0,42032.0,0.04767442]
[1644704458983,0.07698632,42038.0,42032.0,0.04767442]
[1644704459183,0.3,42037.0,42032.0,0.04767442]
[1644704459382,0.20310663,42034.0,42021.0,0.06]
[1644704459588,0.3,42033.0,42021.0,0.06]
[1644704459789,0.3,42033.0,42021.0,0.01]
[1644704460187,0.3534,42033.0,42021.0,0.01]
[1644704460388,0.21325647,42028.0,42021.0,0.01]
[1644704460584,0.3439483,42027.0,42025.0,0.00019561]
[1644704461038,0.59689262,42027.0,42025.0,0.00019561]
[1644704461240,0.3439483,42027.0,42021.0,0.00757378]
[1644704461839,0.59727759,42027.0,42021.0,0.00757378]
[1644704464045,0.3439483,42027.0,42021.0,0.00757378]
[1644704464239,0.3439483,42027.0,42022.0,0.0004488]
[1644704464440,0.6439483,42027.0,42022.0,0.0004488]
[1644704464889,0.3439483,42027.0,42022.0,0.0004488]
[1644704465286,0.3439483,42027.0,42021.0,0.00757378]
[1644704465487,0.00130259,42026.0,42022.0,0.00199359]
[1644704466491,0.00130259,42026.0,42022.0,0.0015448]
[1644704466691,0.00130259,42026.0,42022.0,0.0019936]
[1644704467792,0.00130259,42026.0,42022.0,0.0015448]
[1644704467991,0.00130259,42026.0,42022.0,0.00195791]
[1644704468191,0.00130259,42026.0,42022.0,0.00095791]
[1644704468829,0.00130259,42026.0,42022.0,0.0005448]
[1644704469028,0.00130259,42026.0,42022.0,0.00095791]
[1644704469829,0.00130259,42026.0,42022.0,0.00084806]
[1644704470033,0.00130259,42026.0,42022.0,0.00043495]
[1644704470231,0.25421331,42026.0,42022.0,0.00041311]
[1644704470431,0.00130259,42026.0,42022.0,0.00041311]
[1644704471236,0.00130259,42026.0,42021.0,0.00903204]
[1644704471433,0.00130259,42026.0,42022.0,0.00041432]
[1644704472476,0.00130259,42026.0,42021.0,0.00903204]
[1644704472679,0.00130259,42026.0,42022.0,0.00041432]
[1644704473678,0.00130259,42026.0,42021.0,0.00903204]
[1644704473878,0.00130259,42026.0,42022.0,0.00041432]
[1644704474880,0.00130259,42026.0,42021.0,0.00903204]
[1644704475079,0.00130259,42026.0,42022.0,0.0004142]
[1644704475944,0.00130259,42026.0,42021.0,0.00298798]
[1644704477937,0.00130259,42026.0,42017.0,0.05755798]
[1644704478136,0.00130259,42026.0,42018.0,7.61e-05]
[1644704478336,0.00130259,42026.0,42017.0,0.05763408]
[1644704479980,0.00130259,42026.0,42019.0,0.00044881]
[1644704480182,0.25825427,42026.0,42019.0,0.00044881]
[1644704480982,0.25825427,42026.0,42018.0,7.61e-05]
[1644704481184,0.25825427,42026.0,42020.0,0.00044881]
[1644704481985,0.00130259,42026.0,42020.0,0.00044881]
[1644704482184,0.00130259,42026.0,42018.0,7.61e-05]
[1644704482385,0.00130259,42026.0,42020.0,0.00044881]
[1644704484035,0.00130259,42026.0,42020.0,0.00052491]
[1644704484333,0.08021733,42025.0,42020.0,0.00052491]
[1644704484534,0.08021733,42025.0,42017.0,0.05755798]
[1644704484535,0.08021733,42025.0,42018.0,7.61e-05]
[1644704484734,0.08021733,42025.0,42020.0,0.00044881]
[1644704485536,0.08146434,42025.0,42020.0,0.00044881]
[1644704485739,0.08146434,42025.0,42018.0,7.61e-05]
[1644704485937,0.08146434,42025.0,42020.0,0.00044881]
[1644704486937,0.08146434,42025.0,42018.0,7.61e-05]
[1644704487180,0.08146434,42025.0,42020.0,0.00044881]
[1644704488182,0.08146434,42025.0,42018.0,7.61e-05]
[1644704488384,0.08146434,42025.0,42020.0,0.00044881]
[1644704489383,0.08146434,42025.0,42017.0,7.61e-05]
[1644704489584,0.08146434,42025.0,42020.0,0.00044881]
[1644704490387,0.08146434,42025.0,42020.0,0.00198535]
[1644704490585,0.08146434,42025.0,42020.0,0.00153654]
[1644704490785,0.08146434,42025.0,42020.0,0.00198501]
[1644704491831,0.08146434,42025.0,42020.0,0.00153654]
[1644704492032,0.08146434,42025.0,42020.0,0.00198501]
[1644704493032,0.08146434,42025.0,42020.0,0.00153654]
[1644704493235,0.08146434,42025.0,42020.0,0.00176521]
[1644704494235,0.08146434,42025.0,42020.0,0.00153654]
[1644704494434,0.08146434,42025.0,42020.0,0.00198486]
[1644704495281,0.08146434,42025.0,42020.0,0.00153654]
[1644704495482,0.08146434,42025.0,42020.0,0.00198486]
[1644704495681,0.00198486,42024.0,42020.0,0.00198486]
[1644704496082,0.00307482,42024.0,42020.0,0.00044832]
[1644704496482,0.00307482,42024.0,42018.0,7.61e-05]
[1644704496681,0.00307482,42024.0,42020.0,0.00044832]
[1644704497682,0.00307482,42024.0,42018.0,7.61e-05]
[1644704497884,0.00307482,42024.0,42020.0,0.00044832]
[1644704498935,0.00307482,42024.0,42018.0,7.61e-05]
[1644704499136,0.00307482,42024.0,42020.0,0.00044832]
[1644704500134,0.00307482,42024.0,42018.0,7.61e-05]
[1644704500336,0.00307482,42024.0,42020.0,0.00044832]
[1644704500736,0.00399132,42024.0,42021.0,0.00114322]
[1644704506029,0.00399132,42024.0,42020.0,0.00044832]
[1644704506230,0.00399132,42024.0,42018.0,0.00142622]
[1644704506231,0.00399132,42024.0,42019.0,7.61e-05]
[1644704506431,0.00399132,42024.0,42020.0,0.00022867]
[1644704507430,0.00399132,42024.0,42019.0,7.61e-05]
[1644704507631,0.00399132,42024.0,42020.0,0.00022867]
[1644704508033,0.25973307,42024.0,42020.0,0.00022867]
[1644704508235,0.00399132,42024.0,42020.0,0.00022867]
[1644704508533,0.00399132,42024.0,42019.0,7.61e-05]
[1644704508733,0.00399132,42024.0,42020.0,0.00022867]
[1644704509788,0.00399132,42024.0,42019.0,7.61e-05]
[1644704509789,0.25951062,42024.0,42019.0,7.61e-05]
[1644704509989,0.25951062,42024.0,42020.0,0.00044783]
[1644704510190,0.30951062,42024.0,42020.0,0.00044783]
[1644704510791,0.23368613,42021.0,42020.0,0.00044783]
[1644704511290,0.0790839,42017.0,42012.0,0.04696711]
[1644704511492,0.0790839,42017.0,42016.0,7.611e-05]
[1644704511690,0.0790839,42017.0,42012.0,0.331661]
[1644704511894,0.0790839,42017.0,42012.0,0.33173711]
[1644704512994,0.0790839,42017.0,42012.0,0.35553911]
[1644704513634,0.25949724,42016.0,42013.0,0.331661]
[1644704513837,0.0790839,42017.0,42013.0,7.611e-05]
[1644704514135,0.35,42016.0,42012.0,0.00030429]
[1644704514637,0.21079519,42013.0,42012.0,7.611e-05]
[1644704514834,0.40396235,42013.0,42012.0,0.00044735]
[1644704515034,0.40396235,42013.0,42006.0,0.00178967]
[1644704515336,0.60396235,42013.0,42006.0,0.00178967]
[1644704515735,0.60396235,42013.0,42002.0,0.05]
[1644704515936,0.60396235,42013.0,42001.0,0.01]
[1644704516238,0.86587376,42013.0,42001.0,0.01]
[1644704516433,0.20707011,42002.0,42001.0,0.01]
[1644704516633,0.27975039,42002.0,42001.0,0.01]
[1644704520589,0.28271792,42002.0,42001.0,0.01]
[1644704521634,0.28271792,42002.0,41999.0,0.00044742]
[1644704521835,0.38271792,42002.0,41993.0,0.40472034]
[1644704522035,0.38271792,42002.0,41999.0,0.00044742]
[1644704522235,0.48271792,42002.0,41999.0,0.00044742]
[1644704522633,0.19762538,42000.0,41999.0,0.00044742]
[1644704522834,0.24762538,42000.0,41999.0,0.00044742]
[1644704523037,0.30102538,42000.0,41991.0,0.01]
[1644704523236,0.30102538,42000.0,41999.0,0.24]
[1644704523536,0.30102538,42000.0,41997.0,0.00022759]
[1644704524035,0.35102538,42000.0,41997.0,0.00022759]
[1644704524235,0.35102538,42000.0,41991.0,0.01]
[1644704524538,0.08557619,41999.0,41996.0,0.00044691]
[1644704524785,0.0534,41998.0,41996.0,0.00044691]
[1644704525187,0.124,41998.0,41996.0,0.00044691]
[1644704525487,0.174,41998.0,41995.0,0.00044692]
[1644704525786,1.437,41998.0,41995.0,0.00044692]
[1644704526186,1.537,41998.0,41995.0,0.00044692]
[1644704526587,1.537,41998.0,41991.0,0.00544692]
[1644704526788,1.537,41998.0,41994.0,0.00044692]
[1644704527490,1.537,41998.0,41988.0,0.00178796]
[1644704527491,0.22860534,41995.0,41988.0,0.00178796]
[1644704527688,1.3164,41994.0,41982.0,0.05]
[1644704527889,0.23185921,41988.0,41982.0,0.05]
[1644704528188,0.19241901,41987.0,41975.0,0.40472034]
[1644704528633,0.19241901,41987.0,41976.0,0.30139639]
[1644704528832,0.19241901,41987.0,41976.0,0.70732545]
[1644704529032,0.19241901,41987.0,41976.0,0.40472034]
[1644704529434,0.19241901,41987.0,41973.0,0.74559973]
[1644704529637,0.19241901,41987.0,41973.0,0.98591446]
[1644704530037,0.19241901,41987.0,41981.0,0.25]
[1644704530238,0.18741901,41987.0,41981.0,0.25]
[1644704530436,0.14914,41993.0,41982.0,0.00044699]
[1644704530639,0.02525683,41997.0,41983.0,0.331661]
[1644704530838,0.02667399,41997.0,41984.0,0.385061]
[1644704531037,0.02667399,41997.0,41984.0,0.05932654]
[1644704531238,0.02667399,41997.0,41985.0,0.331661]
[1644704531439,0.25396264,41997.0,41985.0,0.50289591]
[1644704531641,0.31867735,41997.0,41985.0,0.49834287]
[1644704531841,0.31867735,41997.0,41987.0,0.023816]
[1644704532386,0.31867735,41997.0,41982.0,0.67354004]
[1644704532589,0.31867735,41997.0,41981.0,0.25178812]
[1644704532590,0.3,41996.0,41981.0,0.25]
[1644704532986,0.41823048,41997.0,41984.0,0.023818]
[1644704532987,0.24019118,41992.0,41984.0,0.023818]
[1644704533786,0.24019118,41992.0,41985.0,0.059541]
[1644704534387,0.00022029,41993.0,41985.0,0.059541]
[1644704534588,0.07662855,41990.0,41984.0,0.009528]
[1644704534788,0.00022029,41993.0,41982.0,0.01]
[1644704534789,0.26088012,41989.0,41982.0,0.01]
[1644704534987,0.45396264,41997.0,41982.0,0.01]
[1644704534988,0.46849363,41995.0,41982.0,0.01]
[1644704535191,0.00044426,41993.0,41985.0,0.00044434]
[1644704535588,0.22488887,41989.0,41981.0,0.22683362]
[1644704535793,0.25440537,41988.0,41981.0,0.22683362]
[1644704536031,0.25440537,41988.0,41982.0,0.331661]
[1644704536235,0.22488887,41989.0,41983.0,0.331661]
[1644704536434,0.55992485,41989.0,41981.0,0.22683362]
[1644704537634,0.24988039,41982.0,41981.0,0.22683362]
[1644704537838,0.24988039,41982.0,41981.0,0.55849462]
[1644704538036,0.24988039,41982.0,41981.0,0.56802462]
[1644704538234,0.33503598,41989.0,41981.0,0.56802462]
[1644704538434,0.25476287,41989.0,41981.0,0.22683362]
[1644704538635,0.1147,41995.0,41981.0,0.22683362]
[1644704538636,0.29544198,41994.0,41981.0,0.22683362]
[1644704538835,0.00022063,41989.0,41981.0,0.22683362]
[1644704539236,0.26912238,41989.0,41981.0,0.22683362]
[1644704539434,0.26912238,41989.0,41982.0,0.331661]
[1644704539687,0.08817191,41993.0,41981.0,0.22683362]
[1644704539891,0.02635683,41997.0,41984.0,0.331661]
[1644704540089,0.0004443,41989.0,41984.0,0.331661]
[1644704540388,0.00140304,41988.0,41986.0,0.331661]
[1644704540786,0.00140304,41988.0,41983.0,0.00044436]
[1644704540986,0.00140304,41988.0,41984.0,0.331661]
[1644704542088,0.00140304,41988.0,41984.0,0.341189]
[1644704542488,0.00140304,41988.0,41984.0,0.331661]
[1644704542892,0.00140304,41988.0,41984.0,0.33173944]
[1644704543540,0.00140304,41988.0,41984.0,0.331661]
[1644704543740,0.00140304,41988.0,41984.0,0.33173944]
[1644704543938,0.00140304,41988.0,41984.0,7.844e-05]
[1644704544139,0.00140304,41988.0,41984.0,0.331661]
[1644704544340,0.00140304,41988.0,41984.0,0.33173944]